fUST/lending_fUST_20240822
["ID","MTS","AMOUNT","RATE_DAILY","PERIOD"]
[335526780,1724307048951,-242.430355,0.00019626,2]
[335526782,1724307048962,-345.80770526,0.0001965,2]
[335526784,1724307048971,-5332.25636161,0.00019657,2]
[335526786,1724307048981,-203.73884138,0.00019725,2]
[335526788,1724307048990,-5995.34946733,0.00019725,2]
[335526790,1724307049000,-945.59,0.00019725,7]
[335526792,1724307049009,-945.59,0.00019725,7]
[335526794,1724307049019,-945.59,0.00019725,7]
[335526796,1724307049028,-554.55976017,0.00019725,7]
[335526828,1724307049405,-534.52389159,0.00010739,2]
[335526830,1724307049415,-151.0,0.00018924,2]
[335526832,1724307049425,-151.0,0.00019078,2]
[335526834,1724307049435,-192.54776,0.00019178,2]
[335526836,1724307049445,-500.0,0.00019178,2]
[335526839,1724307049456,-192.54776,0.00019178,2]
[335526841,1724307049467,-152.56313,0.00019178,2]
[335526843,1724307049477,-192.54776,0.00019178,2]
[335526845,1724307049488,-192.54776,0.00019178,2]
[335526847,1724307049498,-192.54776,0.00019178,2]
[335526849,1724307049507,-391.03023983,0.00019725,7]
[335526851,1724307049519,-945.77474611,0.00019725,7]
[335526853,1724307049529,-642.39,0.00019725,7]
[335526855,1724307049540,-642.39,0.00019725,7]
[335526858,1724307049550,-642.39,0.00019725,7]
[335526860,1724307049564,-642.39,0.00019725,7]
[335526862,1724307049574,-642.616219,0.00019725,7]
[335526864,1724307049583,-151.0,0.00019726,2]
[335526866,1724307049593,-500.0,0.00019726,7]
[335526868,1724307049605,-500.0,0.00019726,7]
[335526870,1724307049616,-500.0,0.00019726,7]
[335526872,1724307049627,-500.0,0.00019726,7]
[335526875,1724307049640,-500.0,0.00019726,7]
[335526877,1724307049650,-500.0,0.00019726,7]
[335526879,1724307049662,-500.0,0.00019726,7]
[335526881,1724307049671,-500.0,0.00019726,7]
[335526883,1724307049681,-312.23695908,0.00019726,7]
[335526885,1724307049691,-500.0,0.00019726,7]
[335526887,1724307049700,-266.3316268,0.00019726,7]
[335526889,1724307049710,-364.45625135,0.00019726,7]
[335526891,1724307049720,-500.0,0.00019726,7]
[335526893,1724307049730,-500.0,0.00019726,7]
[335526895,1724307049739,-500.0,0.00019726,7]
[335526897,1724307049749,-500.0,0.00019726,7]
[335526899,1724307049759,-500.0,0.00019726,7]
[335526901,1724307049769,-500.0,0.00019726,7]
[335526903,1724307049779,-500.0,0.00019726,7]
[335526905,1724307049788,-500.0,0.00019726,7]
[335526907,1724307049797,-500.0,0.00019726,7]
[335526909,1724307049808,-500.0,0.00019726,7]
[335526912,1724307049818,-500.0,0.00019726,7]
[335526914,1724307049830,-500.0,0.00019726,7]
[335526916,1724307049844,-500.0,0.00019726,7]
[335526918,1724307049855,-500.0,0.00019726,7]
[335526921,1724307049864,-500.0,0.00019726,7]
[335526923,1724307049874,-500.0,0.00019726,7]
[335526925,1724307049884,-500.0,0.00019726,7]
[335526927,1724307049894,-500.0,0.00019726,7]
[335526929,1724307049903,-500.0,0.00019726,7]
[335526931,1724307049913,-500.0,0.00019726,7]
[335526933,1724307049922,-500.0,0.00019726,7]
[335526935,1724307049932,-500.0,0.00019726,7]
[335526937,1724307049942,-500.0,0.00019726,7]
[335526939,1724307049953,-500.0,0.00019726,7]
[335526941,1724307049963,-500.0,0.00019726,7]
[335526943,1724307049973,-500.0,0.00019726,7]
[335526945,1724307049984,-500.0,0.00019726,7]
[335526947,1724307049994,-500.0,0.00019726,7]
[335526949,1724307050005,-500.0,0.00019726,7]
[335526952,1724307050016,-500.0,0.00019726,7]
[335526954,1724307050028,-500.0,0.00019726,7]
[335526956,1724307050041,-500.0,0.00019726,7]
[335526958,1724307050050,-500.0,0.00019726,7]
[335526961,1724307050062,-500.0,0.00019726,7]
[335526963,1724307050074,-500.0,0.00019726,7]
[335526965,1724307050084,-500.0,0.00019726,7]
[335526967,1724307050095,-500.0,0.00019726,7]
[335526969,1724307050105,-500.0,0.00019726,7]
[335526972,1724307050116,-500.0,0.00019726,7]
[335526974,1724307050128,-500.0,0.00019726,7]
[335526976,1724307050137,-500.0,0.00019726,7]
[335526978,1724307050148,-500.0,0.00019726,7]
[335526980,1724307050158,-500.0,0.00019726,7]
[335526982,1724307050169,-500.0,0.00019726,7]
[335526984,1724307050180,-500.0,0.00019726,7]
[335526987,1724307050191,-500.0,0.00019726,7]
[335526989,1724307050203,-500.0,0.00019726,7]
[335526991,1724307050212,-500.0,0.00019726,7]
[335526993,1724307050223,-500.0,0.00019726,7]
[335526995,1724307050234,-500.0,0.00019726,7]
[335526997,1724307050245,-500.0,0.00019726,7]
[335526999,1724307050255,-633.96333067,0.00019726,7]
[335527002,1724307050266,-500.0,0.00019726,7]
[335527004,1724307050278,-500.0,0.00019726,7]
[335527006,1724307050289,-500.0,0.00019726,7]
[335527008,1724307050299,-500.0,0.00019726,7]
[335527010,1724307050311,-500.0,0.00019726,7]
[335527013,1724307050322,-500.0,0.00019726,7]
[335527015,1724307050333,-500.0,0.00019726,7]
[335527017,1724307050344,-500.0,0.00019726,7]
[335527019,1724307050354,-297.09340798,0.00019726,7]
[335527021,1724307050365,-500.0,0.00019726,7]
[335527023,1724307050376,-500.0,0.00019726,7]
[335527026,1724307050389,-540.59189052,0.00019726,7]
[335527028,1724307050399,-501.89510099,0.00019726,7]
[335527030,1724307050410,-500.0,0.00019726,7]
[335527032,1724307050420,-500.0,0.00019726,7]
[335527034,1724307050431,-501.23998699,0.00019726,7]
[335527036,1724307050442,-500.0,0.00019726,7]
[335527039,1724307050453,-500.0,0.00019726,7]
[335527041,1724307050465,-503.96387711,0.00019726,7]
[335527043,1724307050475,-341.29201942,0.00019726,7]
[335527045,1724307050486,-254.90359516,0.00019726,7]
[335527047,1724307050495,-171.50287464,0.00019726,7]
[335527049,1724307050507,-741.64,0.00019726,7]
[335527051,1724307050518,-500.0,0.00019726,7]
[335527053,1724307050528,-500.0,0.00019726,7]
[335527055,1724307050538,-500.0,0.00019726,7]
[335527058,1724307050549,-181.49146317,0.00019726,7]
[335527060,1724307050561,-500.0,0.00019726,7]
[335527062,1724307050571,-500.0,0.00019726,7]
[335527064,1724307050582,-500.0,0.00019726,7]
[335527066,1724307050593,-500.0,0.00019726,7]
[335527068,1724307050605,-500.0,0.00019726,7]
[335527070,1724307050615,-500.0,0.00019726,7]
[335527073,1724307050628,-500.0,0.00019726,7]
[335527075,1724307050640,-500.0,0.00019726,7]
[335527077,1724307050652,-534.0258323,0.00019726,7]
[335527079,1724307050664,-504.4804634,0.00019726,7]
[335527081,1724307050674,-500.0,0.00019726,7]
[335527084,1724307050685,-500.0,0.00019726,7]
[335527086,1724307050695,-504.29167621,0.00019726,7]
[335527088,1724307050706,-500.0,0.00019726,7]
[335527090,1724307050716,-500.0,0.00019726,7]
[335527092,1724307050726,-500.0,0.00019726,7]
[335527094,1724307050739,-500.0,0.00019726,7]
[335527096,1724307050750,-500.0,0.00019726,7]
[335527099,1724307050761,-500.0,0.00019726,7]
[335527101,1724307050771,-500.0,0.00019726,7]
[335527103,1724307050782,-500.0,0.00019726,7]
[335527105,1724307050792,-500.0,0.00019726,7]
[335527107,1724307050802,-500.0,0.00019726,7]
[335527109,1724307050812,-500.0,0.00019726,7]
[335527110,1724307050822,-500.0,0.00019726,7]
[335527111,1724307050832,-500.0,0.00019726,7]
[335527112,1724307050843,-250.65852537,0.00019726,7]
[335527113,1724307050853,-500.0,0.00019726,7]
[335527114,1724307050863,-500.0,0.00019726,7]
[335527115,1724307050873,-608.99280679,0.00019726,7]
[335527116,1724307050883,-500.0,0.00019726,7]
[335527117,1724307050893,-2625.92,0.00019726,7]
[335527119,1724307050903,-500.0,0.00019726,7]
[335527121,1724307050922,-499.14856205,0.00019726,7]
[335527123,1724307050931,-500.0,0.00019726,7]
[335527125,1724307050942,-503.72,0.00019726,7]
[335527127,1724307050952,-500.0,0.00019726,7]
[335527129,1724307050962,-500.0,0.00019726,7]
[335527131,1724307050972,-500.0,0.00019726,7]
[335527133,1724307050983,-500.0,0.00019726,7]
[335527136,1724307050993,-500.0,0.00019726,7]
[335527138,1724307051003,-500.0,0.00019726,7]
[335527140,1724307051013,-500.0,0.00019726,7]
[335527142,1724307051023,-1005.47,0.00019726,7]
[335527144,1724307051033,-500.0,0.00019726,7]
[335527146,1724307051043,-502.18412114,0.00019726,7]
[335527148,1724307051053,-500.0,0.00019726,7]
[335527150,1724307051064,-500.0,0.00019726,7]
[335527152,1724307051074,-500.0,0.00019726,7]
[335527154,1724307051083,-511.39958944,0.00019726,7]
[335527156,1724307051094,-500.0,0.00019726,7]
[335527159,1724307051106,-500.0,0.00019726,7]
[335527160,1724307051115,-626.51,0.00019726,7]
[335527163,1724307051125,-500.0,0.00019726,7]
[335527165,1724307051135,-500.0,0.00019726,7]
[335527167,1724307051145,-502.88,0.00019726,7]
[335527169,1724307051155,-522.10647912,0.00019726,7]
[335527171,1724307051165,-500.0,0.00019726,7]
[335527173,1724307051175,-500.0,0.00019726,7]
[335527175,1724307051186,-500.0,0.00019726,7]
[335527178,1724307051200,-151.0,0.00019726,2]
[335527180,1724307051211,-151.0,0.00019726,2]
[335527182,1724307051222,-153.343443,0.00019726,2]
[335527184,1724307051231,-500.0,0.00019726,7]
[335527186,1724307051242,-775.24,0.00019726,7]
[335527188,1724307051251,-500.0,0.00019726,7]
[335527190,1724307051261,-500.0,0.00019726,7]
[335527192,1724307051271,-500.0,0.00019726,7]
[335527194,1724307051280,-500.0,0.00019726,7]
[335527196,1724307051290,-500.0,0.00019726,7]
[335527198,1724307051300,-514.33,0.00019726,7]
[335527200,1724307051309,-500.0,0.00019726,7]
[335527202,1724307051318,-781.35,0.00019726,7]
[335527204,1724307051328,-500.0,0.00019726,7]
[335527206,1724307051337,-619.39,0.00019726,7]
[335527208,1724307051347,-1115.19,0.00019726,7]
[335527210,1724307051357,-500.0,0.00019726,7]
[335527212,1724307051366,-500.0,0.00019726,7]
[335527214,1724307051376,-874.04,0.00019726,7]
[335527217,1724307051387,-500.0,0.00019726,7]
[335527219,1724307051398,-500.0,0.00019726,7]
[335527221,1724307051410,-500.0,0.00019726,7]
[335527223,1724307051419,-500.0,0.00019726,7]
[335527225,1724307051429,-500.0,0.00019726,7]
[335527227,1724307051439,-500.0,0.00019726,7]
[335527229,1724307051451,-500.0,0.00019726,7]
[335527232,1724307051462,-500.0,0.00019726,7]
[335527234,1724307051473,-500.0,0.00019726,7]
[335527236,1724307051484,-500.0,0.00019726,7]
[335527238,1724307051495,-500.0,0.00019726,7]
[335527240,1724307051507,-508.43269535,0.00019726,7]
[335527242,1724307051516,-500.0,0.00019726,7]
[335527245,1724307051527,-500.0,0.00019726,7]
[335527247,1724307051538,-151.0,0.00019726,2]
[335527249,1724307051549,-151.0,0.00019726,2]
[335527251,1724307051563,-151.0,0.00019726,2]
[335527253,1724307051574,-200.0,0.00019726,7]
[335527255,1724307051584,-2127.4,0.00019726,7]
[335527257,1724307051595,-500.0,0.00019726,7]
[335527260,1724307051607,-500.0,0.00019726,7]
[335527262,1724307051617,-500.0,0.00019726,7]
[335527264,1724307051631,-500.0,0.00019726,7]
[335527283,1724307051796,-502.20221388,0.00019726,7]
[335527285,1724307051808,-500.0,0.00019726,7]
[335527287,1724307051818,-571.18,0.00019726,7]
[335527289,1724307051828,-521.15,0.00019726,7]
[335527291,1724307051837,-500.0,0.00019726,7]
[335527293,1724307051847,-500.0,0.00019726,7]
[335527295,1724307051856,-500.0,0.00019726,7]
[335527297,1724307051865,-500.0,0.00019726,7]
[335527300,1724307051875,-620.05,0.00019726,7]
[335527302,1724307051886,-500.0,0.00019726,7]
[335527304,1724307051896,-582.5,0.00019726,7]
[335527306,1724307051906,-163.17092955,0.00019726,7]
[335527308,1724307051915,-500.0,0.00019726,7]
[335527310,1724307051924,-500.0,0.00019726,7]
[335527312,1724307051934,-500.0,0.00019726,7]
[335527314,1724307051944,-500.0,0.00019726,7]
[335527316,1724307051953,-500.0,0.00019726,7]
[335527318,1724307051962,-500.0,0.00019726,7]
[335527320,1724307051972,-707.99,0.00019726,7]
[335527322,1724307051984,-305.03032925,0.00019726,7]
[335527324,1724307051993,-500.0,0.00019726,7]
[335527326,1724307052003,-500.0,0.00019726,7]
[335527328,1724307052015,-500.0,0.00019726,7]
[335527330,1724307052024,-500.0,0.00019726,7]
[335527332,1724307052035,-500.0,0.00019726,7]
[335527334,1724307052044,-500.0,0.00019726,7]
[335527336,1724307052054,-828.03,0.00019726,7]
[335527339,1724307052064,-1825.01,0.00019726,7]
[335527341,1724307052073,-500.0,0.00019726,7]
[335527343,1724307052084,-500.0,0.00019726,7]
[335527345,1724307052093,-500.0,0.00019726,7]
[335527347,1724307052102,-501.02889922,0.00019726,7]
[335527349,1724307052111,-513.56,0.00019726,7]
[335527351,1724307052121,-953.68,0.00019726,7]
[335527353,1724307052131,-500.0,0.00019726,7]
[335527355,1724307052140,-1021.77,0.00019726,7]
[335527357,1724307052149,-500.0,0.00019726,7]
[335527359,1724307052160,-500.0,0.00019726,7]
[335527361,1724307052169,-500.0,0.00019726,7]
[335527363,1724307052179,-544.17,0.00019726,7]
[335527365,1724307052189,-500.0,0.00019726,7]
[335527367,1724307052200,-500.0,0.00019726,7]
[335527369,1724307052210,-502.04300891,0.00019726,7]
[335527371,1724307052220,-500.0,0.00019726,7]
[335527373,1724307052229,-500.0,0.00019726,7]
[335527375,1724307052239,-500.0,0.00019726,7]
[335527378,1724307052248,-501.24214852,0.00019726,7]
[335527379,1724307052257,-500.0,0.00019726,7]
[335527381,1724307052266,-500.0,0.00019726,7]
[335527383,1724307052275,-500.0,0.00019726,7]
[335527385,1724307052284,-500.0,0.00019726,7]
[335527388,1724307052294,-505.69,0.00019726,7]
[335527390,1724307052304,-500.0,0.00019726,7]
[335527392,1724307052315,-500.0,0.00019726,7]
[335527394,1724307052324,-500.0,0.00019726,7]
[335527396,1724307052333,-500.0,0.00019726,7]
[335527398,1724307052344,-500.0,0.00019726,7]
[335527399,1724307052354,-500.0,0.00019726,7]
[335527400,1724307052363,-702.98,0.00019726,7]
[335527401,1724307052372,-2392.09,0.00019726,7]
[335527402,1724307052382,-500.0,0.00019726,7]
[335527403,1724307052392,-500.0,0.00019726,7]
[335527404,1724307052401,-257.603894,0.00019726,2]
[335527405,1724307052412,-257.603894,0.00019726,2]
[335527406,1724307052422,-500.0,0.00019726,7]
[335527408,1724307052431,-500.0,0.00019726,7]
[335527410,1724307052441,-500.0,0.00019726,7]
[335527412,1724307052451,-2580.48,0.00019726,7]
[335527414,1724307052462,-754.86,0.00019726,7]
[335527417,1724307052474,-500.0,0.00019726,7]
[335527419,1724307052484,-500.0,0.00019726,7]
[335527421,1724307052495,-458.759137,0.00019726,2]
[335527423,1724307052505,-458.759137,0.00019726,2]
[335527425,1724307052516,-500.0,0.00019726,7]
[335527427,1724307052527,-500.0,0.00019726,7]
[335527429,1724307052539,-458.759137,0.00019726,2]
[335527432,1724307052551,-458.759137,0.00019726,2]
[335527434,1724307052564,-500.0,0.00019726,7]
[335527436,1724307052574,-500.0,0.00019726,7]
[335527438,1724307052584,-500.0,0.00019726,7]
[335527440,1724307052593,-500.0,0.00019726,7]
[335527442,1724307052602,-500.0,0.00019726,7]
[335527444,1724307052613,-500.0,0.00019726,7]
[335527446,1724307052624,-500.0,0.00019726,7]
[335527447,1724307052635,-500.0,0.00019726,7]
[335527449,1724307052646,-1244.92,0.00019726,7]
[335527452,1724307052656,-500.0,0.00019726,7]
[335527454,1724307052666,-1000.0,0.00019726,7]
[335527456,1724307052676,-500.0,0.00019726,7]
[335527458,1724307052688,-1015.01994181,0.00019726,7]
[335527461,1724307052710,-425.03005819,0.00019726,7]
[335527463,1724307052721,-500.0,0.00019726,7]
[335527465,1724307052731,-500.0,0.00019726,7]
[335527468,1724307052742,-500.0,0.00019726,7]
[335527470,1724307052753,-177.79851732,0.00019726,7]
[335527472,1724307052764,-370.87408626,0.00019726,7]
[335528963,1724307177819,-826.33,0.00010959,2]
[335528964,1724307177843,-826.33,0.00011999,2]
[335528965,1724307177855,-2967.34,0.00011999,2]
[335528967,1724307277182,-1529.0,0.00014544,2]
[335528969,1724307388627,-10.68021205,0.00015,2]
[335528970,1724307388659,-277.3095759,0.00015,2]
[335529102,1724308238058,-446.8476032,0.00012536,2]
[335529128,1724308238283,-5133.81245142,0.00012779,2]
[335529130,1724308238294,-250.0,0.00012997,2]
[335529132,1724308238305,-250.0,0.00013032,2]
[335529134,1724308238316,-250.0,0.00013068,2]
[335529137,1724308238328,-250.0,0.00013104,2]
[335529139,1724308238339,-250.0,0.00013139,2]
[335529141,1724308238348,-250.0,0.00013175,2]
[335529143,1724308238359,-250.0,0.00013211,2]
[335529145,1724308238369,-250.0,0.00013246,2]
[335529147,1724308238380,-250.0,0.00013282,2]
[335529149,1724308238390,-250.0,0.00013318,2]
[335529151,1724308238401,-250.0,0.00013353,2]
[335529153,1724308238411,-250.0,0.00013389,2]
[335529155,1724308238422,-250.0,0.00013424,2]
[335529157,1724308238432,-250.0,0.0001346,2]
[335529159,1724308238444,-250.0,0.00013496,2]
[335529161,1724308238454,-250.0,0.00013531,2]
[335529163,1724308238464,-300.0,0.00013566,2]
[335529164,1724308238476,-250.0,0.00013567,2]
[335529165,1724308238487,-250.0,0.00013603,2]
[335529166,1724308238497,-250.0,0.00013638,2]
[335529167,1724308238507,-250.0,0.00013674,2]
[335529168,1724308238516,-712.121826,0.00013699,2]
[335529169,1724308238527,-217.73648774,0.00013899,2]
[335529170,1724308238536,-160.92736459,0.00013899,2]
[335529171,1724308238547,-24900.0,0.000139,2]
[335529172,1724308238558,-1125.5738711,0.00013934,2]
[335529173,1724308238567,-380.950594,0.00014247,2]
[335529174,1724308238579,-194.32270258,0.00014519,2]
[335529175,1724308238590,-161.0,0.00014923,2]
[335529176,1724308238599,-826.33,0.00015,2]
[335529177,1724308238610,-2640.95997503,0.00015,2]
[335529178,1724308238620,-154.99156235,0.00015,2]
[335529179,1724308238629,-65110.7703426,0.0001598,2]
[335529180,1724308238639,-130221.540685,0.0001599,2]
[335529181,1724308238648,-154.89848934,0.00016,2]
[335529182,1724308238657,-100000.0,0.00016,2]
[335529183,1724308238668,-1866.70361313,0.00017,2]
[335529184,1724308238677,-1991.79076463,0.000176,2]
[335529185,1724308238686,-65110.7703426,0.00017708,2]
[335529186,1724308238695,-753.0090862,0.00017728,2]
[335529187,1724308238704,-4503.01253043,0.00017898,2]
[335529188,1724308238713,-154.76012181,0.00018355,2]
[335529189,1724308238722,-956.5489669,0.00018571,2]
[335529190,1724308238731,-479.40045431,0.00018614,2]
[335529191,1724308238740,-211.35095117,0.00018988,2]
[335529192,1724308238750,-500.0,0.00018988,2]
[335529193,1724308238761,-500.0,0.00018988,2]
[335529194,1724308238772,-500.0,0.00018988,2]
[335529195,1724308238783,-217.54978257,0.00018988,2]
[335529196,1724308238793,-243.57414045,0.00018988,2]
[335529197,1724308238802,-500.0,0.00018988,2]
[335529198,1724308238812,-500.0,0.00018988,2]
[335529199,1724308238823,-500.0,0.00018988,2]
[335529200,1724308238834,-500.0,0.00018988,2]
[335529201,1724308238846,-500.0,0.00018988,2]
[335529202,1724308238856,-500.0,0.00018988,2]
[335529203,1724308238866,-500.0,0.00018988,2]
[335529204,1724308238876,-500.0,0.00018988,2]
[335529205,1724308238885,-500.0,0.00018988,2]
[335529206,1724308238895,-500.0,0.00018988,2]
[335529207,1724308238905,-300.0,0.00018988,2]
[335529208,1724308238913,-65110.7703426,0.00018989,2]
[335529209,1724308238923,-21169.02977912,0.00018999,2]
[335529210,1724308238940,-415.94531244,0.00018999,2]
[335529225,1724308240173,-2334.51635807,0.00018999,2]
[335529226,1724308240184,-160.205687,0.00019,2]
[335529227,1724308240194,-31315.31146536,0.00019078,2]
[335529228,1724308240203,-10946.4206435,0.00019078,2]
[335529229,1724308240213,-42935.03702361,0.00019078,2]
[335529230,1724308240223,-189.7923917,0.00019116,2]
[335529231,1724308240232,-200.0,0.00019173,2]
[335529232,1724308240242,-500.0,0.00019173,2]
[335529233,1724308240251,-401.59927569,0.00019173,2]
[335529234,1724308240262,-500.0,0.00019173,2]
[335529235,1724308240273,-500.0,0.00019173,2]
[335529236,1724308240283,-200.27206118,0.00019173,2]
[335529237,1724308240293,-500.0,0.00019173,2]
[335529238,1724308240302,-500.0,0.00019178,2]
[335529239,1724308240312,-501.76576602,0.00019178,2]
[335529240,1724308240322,-500.0,0.00019178,2]
[335529241,1724308240331,-501.86506517,0.00019178,2]
[335529242,1724308240347,-513.07708007,0.00019178,2]
[335529243,1724308240358,-500.0,0.00019178,2]
[335529244,1724308240367,-500.0,0.00019178,2]
[335529245,1724308240377,-500.0,0.00019178,2]
[335529246,1724308240387,-500.0,0.00019178,2]
[335529247,1724308240396,-500.0,0.00019178,2]
[335529248,1724308240405,-500.0,0.00019178,2]
[335529249,1724308240414,-921.68,0.00019178,2]
[335529250,1724308240424,-500.0,0.00019178,2]
[335529251,1724308240433,-500.0,0.00019178,2]
[335529252,1724308240442,-500.0,0.00019178,2]
[335529253,1724308240451,-500.0,0.00019178,2]
[335529254,1724308240460,-500.0,0.00019178,2]
[335529255,1724308240470,-500.0,0.00019178,2]
[335529256,1724308240478,-500.0,0.00019178,2]
[335529257,1724308240488,-522.10647912,0.00019178,2]
[335529258,1724308240497,-500.0,0.00019178,2]
[335529259,1724308240506,-500.0,0.00019178,2]
[335529260,1724308240516,-500.0,0.00019178,2]
[335529261,1724308240526,-500.0,0.00019178,2]
[335529262,1724308240536,-500.0,0.00019178,2]
[335529263,1724308240546,-500.0,0.00019178,2]
[335529264,1724308240555,-500.0,0.00019178,2]
[335529265,1724308240564,-200.0,0.00019178,2]
[335529266,1724308240575,-593.58,0.00019178,2]
[335529267,1724308240587,-600.41,0.00019178,2]
[335529268,1724308240599,-500.0,0.00019178,2]
[335529269,1724308240611,-500.0,0.00019178,2]
[335529270,1724308240620,-500.0,0.00019178,2]
[335529271,1724308240629,-500.0,0.00019178,2]
[335529272,1724308240638,-500.0,0.00019178,2]
[335529273,1724308240648,-500.0,0.00019178,2]
[335529274,1724308240657,-500.0,0.00019178,2]
[335529275,1724308240665,-500.0,0.00019178,2]
[335529276,1724308240675,-500.0,0.00019178,2]
[335529277,1724308240685,-500.0,0.00019178,2]
[335529278,1724308240694,-500.0,0.00019178,2]
[335529279,1724308240704,-1068.72,0.00019178,2]
[335529280,1724308240713,-508.43269535,0.00019178,2]
[335529281,1724308240722,-500.0,0.00019178,2]
[335529282,1724308240731,-500.0,0.00019178,2]
[335529283,1724308240741,-500.0,0.00019178,2]
[335529284,1724308240750,-500.0,0.00019178,2]
[335529285,1724308240758,-502.20221388,0.00019178,2]
[335529286,1724308240767,-500.0,0.00019178,2]
[335529287,1724308240777,-163.17092955,0.00019178,2]
[335529288,1724308240785,-500.0,0.00019178,2]
[335529289,1724308240794,-500.0,0.00019178,2]
[335529290,1724308240803,-500.0,0.00019178,2]
[335529291,1724308240812,-500.0,0.00019178,2]
[335529292,1724308240820,-500.0,0.00019178,2]
[335529293,1724308240829,-500.0,0.00019178,2]
[335529294,1724308240839,-500.0,0.00019178,2]
[335529295,1724308240848,-500.0,0.00019178,2]
[335529296,1724308240857,-500.0,0.00019178,2]
[335529297,1724308240866,-500.0,0.00019178,2]
[335529298,1724308240875,-500.0,0.00019178,2]
[335529299,1724308240884,-500.0,0.00019178,2]
[335529300,1724308240893,-500.0,0.00019178,2]
[335529301,1724308240902,-501.02889922,0.00019178,2]
[335529302,1724308240910,-913.95,0.00019178,2]
[335529303,1724308240920,-673.69,0.00019178,2]
[335529304,1724308240929,-500.0,0.00019178,2]
[335529305,1724308240938,-500.0,0.00019178,2]
[335529306,1724308240946,-500.0,0.00019178,2]
[335529307,1724308240955,-500.0,0.00019178,2]
[335529308,1724308240964,-502.04300891,0.00019178,2]
[335529309,1724308240973,-501.24214852,0.00019178,2]
[335529310,1724308240982,-500.0,0.00019178,2]
[335529311,1724308240992,-500.0,0.00019178,2]
[335529312,1724308241001,-500.0,0.00019178,2]
[335529313,1724308241010,-500.0,0.00019178,2]
[335529314,1724308241019,-500.0,0.00019178,2]
[335529315,1724308241028,-500.0,0.00019178,2]
[335529316,1724308241038,-500.0,0.00019178,2]
[335529317,1724308241047,-500.0,0.00019178,2]
[335529318,1724308241056,-500.0,0.00019178,2]
[335529319,1724308241068,-500.0,0.00019178,2]
[335529320,1724308241077,-500.0,0.00019178,2]
[335529321,1724308241086,-500.0,0.00019178,2]
[335529322,1724308241096,-500.0,0.00019178,2]
[335529323,1724308241106,-500.0,0.00019178,2]
[335529324,1724308241115,-500.0,0.00019178,2]
[335529325,1724308241125,-500.0,0.00019178,2]
[335529326,1724308241134,-500.0,0.00019178,2]
[335529327,1724308241144,-500.0,0.00019178,2]
[335529328,1724308241153,-500.0,0.00019178,2]
[335529329,1724308241162,-500.0,0.00019178,2]
[335529330,1724308241171,-500.0,0.00019178,2]
[335529331,1724308241180,-500.0,0.00019178,2]
[335529332,1724308241189,-500.0,0.00019178,2]
[335529333,1724308241198,-500.0,0.00019178,2]
[335529334,1724308241207,-500.0,0.00019178,2]
[335529335,1724308241216,-500.0,0.00019178,2]
[335529336,1724308241226,-500.0,0.00019178,2]